bitfinex-derivatives/quotes_BTCF0:USTF0_20251109
["timestamp","ask_amount","ask_price","bid_price","bid_amount"]
[1762729648689,0.5923063,105240.0,105230.0,0.31951803]
[1762729649191,0.2315063,105240.0,105230.0,0.68031803]
[1762729649492,0.2295063,105240.0,105230.0,0.68031803]
[1762729649688,0.1344621,105240.0,105230.0,0.77537123]
[1762729649881,0.01493963,105240.0,105230.0,0.77537123]
[1762729650496,0.10998373,105240.0,105230.0,0.68031803]
[1762729650796,0.10998373,105240.0,105230.0,0.77537123]
[1762729650984,0.01493963,105240.0,105230.0,0.77537123]
[1762729651392,0.0995303,105260.0,105250.0,0.31732]
[1762729651593,0.0995303,105260.0,105250.0,0.39908744]
[1762729651781,0.0995303,105260.0,105250.0,0.30405234]
[1762729652192,0.23220947,105260.0,105250.0,0.30405234]
[1762729652496,0.23220947,105260.0,105250.0,0.00219803]
[1762729653284,0.23220947,105260.0,105250.0,0.31951803]
[1762729653489,0.23620947,105260.0,105250.0,0.31951803]
[1762729653999,0.23620947,105260.0,105250.0,0.41455313]
[1762729654693,0.23620947,105260.0,105250.0,0.68031803]
[1762729654897,0.23220947,105260.0,105250.0,0.68031803]
[1762729655199,0.23220947,105260.0,105240.0,0.25307277]
[1762729655200,0.0950351,105250.0,105240.0,0.25307277]
[1762729655396,0.0950351,105250.0,105240.0,0.8732749]
[1762729655600,0.0186567,105260.0,105250.0,0.4123551]
[1762729655796,0.0186567,105260.0,105250.0,0.78535312]
[1762729656095,0.57533617,105280.0,105260.0,0.0950208]
[1762729656296,0.57533617,105280.0,105270.0,0.31951803]
[1762729656500,0.58860016,105280.0,105270.0,0.31951803]
[1762729657298,0.22780016,105280.0,105270.0,0.31951803]
[1762729657693,0.22780016,105280.0,105270.0,0.41453503]
[1762729657885,0.23080016,105280.0,105270.0,0.41453503]
[1762729658092,0.23080016,105280.0,105270.0,0.77533503]
[1762729658401,0.23080016,105280.0,105270.0,0.31951803]
[1762729658588,0.095017,105270.0,105260.0,0.09791277]
[1762729658790,0.21453947,105270.0,105260.0,0.7782308]
[1762729659193,0.21453947,105270.0,105260.0,0.4174308]
[1762729659395,0.57533947,105270.0,105260.0,0.4174308]
[1762729659597,0.455817,105270.0,105260.0,0.4174308]
[1762729659807,0.57533947,105270.0,105260.0,0.4174308]
[1762729660291,0.57533947,105270.0,105260.0,0.00014277]
[1762729660691,0.57533947,105270.0,105260.0,0.4174308]
[1762729660692,0.57833947,105270.0,105260.0,0.4174308]
[1762729660891,0.21753947,105270.0,105260.0,0.4174308]
[1762729661797,0.098017,105270.0,105260.0,0.4174308]
[1762729661986,0.21753947,105270.0,105260.0,0.4174308]
[1762729663498,0.21753947,105270.0,105260.0,0.1001108]
[1762729663692,0.57633947,105270.0,105260.0,0.09791277]
[1762729664002,0.57633947,105270.0,105260.0,7e-08]
[1762729664193,0.0950353,105250.0,105240.0,0.41509]
[1762729664395,0.0950353,105250.0,105240.0,0.41728803]
[1762729664396,0.21455777,105250.0,105240.0,0.41728803]
[1762729664700,0.0950353,105250.0,105240.0,0.87313233]
[1762729665489,0.09517527,105260.0,105250.0,0.4123553]
[1762729665695,0.09517527,105260.0,105250.0,0.77535333]
[1762729666891,0.21469774,105260.0,105250.0,0.68031803]
[1762729667497,0.21469774,105260.0,105250.0,0.77635333]
[1762729667898,0.21469774,105260.0,105250.0,0.68131803]
[1762729669202,0.09517527,105260.0,105250.0,0.77635333]
[1762729669997,0.09517527,105260.0,105250.0,0.68131803]
[1762729670497,0.21469774,105260.0,105250.0,0.68131803]
[1762729671015,0.21469774,105260.0,105250.0,0.65966891]
[1762729674308,0.21469774,105260.0,105250.0,0.75470451]
[1762729674502,0.21469774,105260.0,105250.0,0.65966891]
[1762729674902,0.0950252,105270.0,105260.0,0.1894038]
[1762729675100,0.0950252,105270.0,105260.0,0.76599599]
[1762729675301,0.21454767,105270.0,105260.0,0.86102259]
[1762729676010,0.21554767,105270.0,105260.0,0.86102259]
[1762729676510,0.21554767,105270.0,105260.0,0.76599599]
[1762729676697,0.21554767,105270.0,105260.0,0.40519599]
[1762729677704,0.57634767,105270.0,105260.0,0.40519599]
[1762729678804,0.4085166,105260.0,105250.0,7e-08]
[1762729679005,0.4085347,105240.0,105230.0,0.1518]
[1762729679206,1.16572547,105240.0,105230.0,0.1518]
[1762729679610,1.16572547,105240.0,105230.0,0.31164803]
[1762729680511,0.94453097,105240.0,105230.0,0.31164803]
[1762729681210,0.0950447,105240.0,105230.0,0.67244803]
[1762729681406,0.85236914,105250.0,105240.0,0.40055]
[1762729681708,0.09517837,105250.0,105240.0,0.76354803]
[1762729681906,0.09517837,105250.0,105240.0,0.76054803]
[1762729682412,0.09517837,105250.0,105240.0,0.85559273]
[1762729682609,0.9905097,105270.0,105260.0,0.40055]
[1762729682810,0.0950358,105250.0,105240.0,0.76135]
[1762729683010,0.0950358,105250.0,105240.0,0.85859283]
[1762729683407,0.0950318,105260.0,105250.0,0.4044858]
[1762729683715,0.0970252,105270.0,105260.0,0.40055]
[1762729683916,0.0970177,105270.0,105260.0,0.77354802]
[1762729684714,0.0970177,105270.0,105260.0,0.86857482]
[1762729685216,0.0950177,105270.0,105260.0,0.86857482]
[1762729685703,0.0950177,105270.0,105260.0,0.75808699]
[1762729686114,0.4085077,105270.0,105260.0,0.751087]
[1762729686808,0.7693077,105270.0,105260.0,0.390287]
[1762729687318,0.0950177,105270.0,105260.0,0.749087]
[1762729687513,0.27021397,105270.0,105260.0,0.388287]
[1762729688510,0.58370397,105270.0,105260.0,0.388287]
[1762729688809,0.58370397,105270.0,105260.0,0.749087]
[1762729689212,0.58370397,105270.0,105260.0,0.748087]
[1762729689420,0.94850397,105270.0,105260.0,0.387287]
[1762729689912,0.94450397,105270.0,105260.0,0.387287]
[1762729690118,0.94850397,105270.0,105260.0,0.387287]
[1762729690511,0.85348627,105270.0,105260.0,0.4823138]
[1762729690718,0.27421397,105270.0,105260.0,0.748087]
[1762729691014,0.17919627,105270.0,105260.0,0.8431138]
[1762729691212,0.27421397,105270.0,105260.0,0.748087]
[1762729691618,0.27421397,105270.0,105260.0,0.387287]
[1762729691818,0.27421397,105270.0,105260.0,0.748087]
[1762729692016,0.27421397,105270.0,105260.0,0.387287]
[1762729692217,0.94850397,105270.0,105260.0,0.387287]
[1762729692424,0.48868627,105270.0,105260.0,0.387287]
[1762729692615,0.27221397,105270.0,105260.0,0.387287]
[1762729692817,0.58570397,105270.0,105260.0,0.387287]
[1762729693313,0.4105077,105270.0,105260.0,0.387287]
[1762729693815,0.4085077,105270.0,105260.0,0.387287]
[1762729694020,0.4085077,105270.0,105260.0,0.296187]
[1762729694221,0.7693077,105270.0,105260.0,0.296187]
[1762729695117,0.7693077,105270.0,105260.0,0.387287]
[1762729695320,0.7713077,105270.0,105260.0,0.387287]
[1762729696018,0.4085172,105260.0,105250.0,0.36094277]
[1762729696219,0.58371347,105260.0,105250.0,0.36094277]
[1762729696525,0.67257347,105260.0,105250.0,0.5149408]
[1762729696721,0.58371347,105260.0,105250.0,0.5149408]
[1762729697023,0.58371347,105260.0,105250.0,0.6725908]
[1762729697214,0.58371347,105260.0,105250.0,0.67244803]
[1762729697421,0.27022347,105260.0,105250.0,0.65712664]
[1762729698318,0.09916087,105270.0,105260.0,0.37392848]
[1762729698626,0.09916087,105270.0,105260.0,0.73692651]
[1762729698816,0.09516087,105270.0,105260.0,0.37612651]
[1762729699024,0.09516087,105270.0,105260.0,0.73392651]
[1762729699527,0.09516087,105270.0,105260.0,0.37312651]
[1762729699528,0.40865087,105270.0,105260.0,0.37312651]
[1762729699926,0.40965087,105270.0,105260.0,0.37312651]
[1762729700820,0.40965087,105270.0,105260.0,0.28202651]
[1762729701123,0.40965087,105270.0,105260.0,0.37312651]
[1762729701423,0.40965087,105270.0,105250.0,0.3554786]
[1762729701424,0.4085171,105260.0,105250.0,0.65492861]
[1762729701625,0.58371337,105260.0,105250.0,0.65712664]
[1762729703022,0.67257337,105260.0,105250.0,0.00219803]
[1762729703525,0.67257337,105260.0,105250.0,0.15399803]
[1762729703728,0.58371337,105260.0,105250.0,0.31164803]
[1762729704420,1.03337337,105260.0,105250.0,0.31164803]
[1762729704721,1.03337337,105260.0,105250.0,0.15399803]
[1762729704925,1.03437337,105260.0,105250.0,0.15399803]
[1762729705119,0.4085261,105250.0,105240.0,0.30959277]
[1762729705318,0.7693261,105250.0,105240.0,0.00014277]
[1762729707322,0.7693261,105250.0,105220.0,0.46199999]
[1762729707523,0.4003223,105220.0,105210.0,0.3608]
[1762729707728,0.4003313,105210.0,105200.0,0.77668262]
[1762729708030,0.57552757,105210.0,105200.0,0.76888066]
[1762729709125,0.57652757,105210.0,105200.0,0.76888066]
[1762729710420,0.57552757,105210.0,105200.0,0.76888066]
[1762729710622,0.57552757,105210.0,105200.0,0.41008066]
[1762729710925,0.57552757,105210.0,105200.0,0.00675263]
[1762729711126,0.93632757,105210.0,105200.0,0.00675263]
[1762729711425,0.4485299,105200.0,105190.0,0.00014277]
[1762729711630,0.8093299,105200.0,105190.0,0.00014277]
[1762729712027,0.8093299,105200.0,105190.0,7e-08]
[1762729712328,0.4453882,105180.0,105170.0,0.00475398]
[1762729712531,0.57555447,105180.0,105170.0,0.31688201]
[1762729715128,0.15602277,105190.0,105180.0,0.40243]
[1762729715429,0.00014277,105190.0,105180.0,0.76542803]
[1762729715622,0.09523197,105190.0,105180.0,0.76542803]
[1762729715826,0.40049197,105190.0,105180.0,0.76542803]
[1762729716130,0.40049197,105190.0,105180.0,0.00219803]
[1762729716334,0.40049197,105190.0,105180.0,0.31212803]
[1762729717033,0.40249197,105190.0,105180.0,0.31212803]
[1762729717332,0.40395732,105190.0,105180.0,0.38988627]
[1762729717732,0.40195732,105190.0,105180.0,0.38988627]
[1762729719023,0.40195732,105190.0,105180.0,0.29738627]
[1762729719430,0.76275732,105190.0,105180.0,0.29738627]
[1762729719638,0.76275732,105190.0,105180.0,0.39188627]
[1762729719821,0.40195732,105190.0,105180.0,0.39188627]
[1762729720236,0.40395732,105190.0,105180.0,0.38988627]
[1762729720629,0.40395732,105190.0,105180.0,0.00073267]
[1762729720930,0.418138,105180.0,105170.0,0.00475398]
[1762729721133,0.5955323,105180.0,105170.0,0.00475398]
[1762729721333,0.5955323,105180.0,105170.0,0.00548665]
[1762729721634,0.5955323,105180.0,105170.0,0.16409665]
[1762729722438,0.5955323,105180.0,105170.0,0.31541665]
[1762729722635,0.5777523,105180.0,105170.0,0.31541665]
[1762729723525,0.00219803,105180.0,105170.0,0.67621665]
[1762729723836,0.00014277,105190.0,105180.0,0.4975281]
[1762729724029,0.00014277,105190.0,105180.0,0.86906076]
[1762729724235,0.0023408,105190.0,105180.0,0.86906076]
[1762729725640,0.0974299,105190.0,105180.0,0.86906076]
[1762729726334,0.0974299,105190.0,105180.0,0.87306076]
[1762729726735,0.0023408,105190.0,105180.0,0.87306076]
[1762729727837,0.0974298,105190.0,105180.0,0.87306076]
[1762729729344,0.0974298,105190.0,105180.0,0.77796266]
[1762729729543,0.0974298,105190.0,105180.0,0.76796267]
[1762729729842,0.3893198,105190.0,105180.0,0.75248912]
[1762729730034,0.0974298,105190.0,105180.0,0.75248912]
[1762729730235,0.0023408,105190.0,105180.0,0.84758752]
[1762729731333,0.0023408,105190.0,105180.0,0.84358752]
[1762729731637,0.0023408,105190.0,105180.0,0.84558752]
[1762729732336,0.0023408,105190.0,105180.0,0.84758752]
[1762729733434,0.0974306,105190.0,105180.0,0.75248912]
[1762729734229,0.0974306,105190.0,105180.0,0.84758792]
[1762729734439,0.2370506,105190.0,105180.0,0.84758792]
[1762729734634,0.2370506,105190.0,105180.0,0.84558792]
[1762729734828,0.2370506,105190.0,105180.0,0.85558791]
[1762729735044,0.0974306,105190.0,105180.0,0.85558791]
[1762729735342,0.0023408,105190.0,105180.0,0.85558791]
[1762729736145,0.3650449,105210.0,105200.0,0.35797]
[1762729736341,0.3650449,105210.0,105200.0,0.36016803]
[1762729736748,0.3650449,105210.0,105200.0,0.00219803]
[1762729736942,0.0950899,105190.0,105180.0,0.83389899]
[1762729737147,0.0950899,105190.0,105180.0,0.83609702]
[1762729737349,0.54039444,105200.0,105190.0,0.2735]
[1762729737546,0.54039444,105200.0,105190.0,0.28569802]
[1762729738348,0.09522817,105200.0,105190.0,0.38078792]
[1762729738851,0.00014277,105200.0,105190.0,0.38078792]
[1762729739242,0.00014277,105200.0,105190.0,0.74358792]
[1762729739846,0.00014277,105200.0,105190.0,0.72811633]
[1762729740349,0.09522367,105200.0,105190.0,0.63302643]
[1762729740538,0.48467418,105200.0,105190.0,0.27222643]
[1762729740739,0.48467418,105200.0,105190.0,0.26322644]
[1762729740944,0.23274367,105200.0,105190.0,0.72911633]
[1762729741146,0.23274367,105200.0,105190.0,0.63402643]
[1762729741347,0.09522367,105200.0,105190.0,0.63402643]
[1762729741649,0.09522367,105200.0,105190.0,0.72711633]
[1762729742041,0.00014277,105200.0,105190.0,0.72711633]
[1762729742241,0.09522367,105200.0,105190.0,0.72711633]
[1762729742641,0.21470418,105200.0,105190.0,0.63202643]
[1762729743044,0.21470418,105200.0,105190.0,0.72711583]
[1762729743245,0.09522387,105200.0,105190.0,0.72711583]
[1762729743752,0.09522387,105200.0,105190.0,0.72611583]
[1762729743952,0.09522387,105200.0,105190.0,0.72911583]
[1762729744347,0.00014277,105200.0,105190.0,0.72911583]
[1762729744651,0.00014277,105200.0,105190.0,0.72611583]
[1762729744956,0.00014277,105200.0,105190.0,0.72711583]
[1762729745149,0.22119432,105220.0,105210.0,0.3685721]
[1762729745343,0.31625742,105220.0,105210.0,0.71991106]
[1762729745543,0.0950631,105220.0,105210.0,0.71991106]
[1762729745744,0.3650421,105210.0,105200.0,0.71877]
[1762729746045,0.3650421,105210.0,105200.0,0.36016803]
[1762729746046,0.48452261,105210.0,105200.0,0.36016803]
[1762729746257,0.26997,105210.0,105200.0,0.81604923]
[1762729746751,0.36518257,105220.0,105210.0,0.2735]
[1762729746953,0.48466308,105220.0,105210.0,0.73157013]
[1762729747251,0.00014277,105220.0,105210.0,0.73257013]
[1762729747650,0.09520587,105220.0,105210.0,0.73257013]
[1762729748651,0.09520587,105220.0,105210.0,0.73457013]
[1762729748855,0.09520587,105220.0,105210.0,0.74457012]
[1762729748856,0.00014277,105220.0,105210.0,0.74457012]
[1762729749955,0.00014277,105220.0,105210.0,0.72910148]
[1762729750145,0.00014277,105220.0,105210.0,0.72610148]
[1762729750344,0.00014277,105220.0,105210.0,0.72710148]
[1762729750543,0.48028051,105240.0,105210.0,0.46907012]
[1762729750754,0.3608,105250.0,105240.0,0.453015]
[1762729750755,0.48448921,105250.0,105240.0,0.453015]
[1762729750945,0.72401432,105260.0,105250.0,0.2735]
[1762729751146,0.45824172,105260.0,105250.0,0.38073402]
[1762729751347,0.32072172,105260.0,105250.0,0.38073402]
[1762729751655,0.0995274,105260.0,105250.0,0.28569802]
[1762729751856,0.48897791,105260.0,105250.0,0.28369802]
[1762729752253,0.27447,105260.0,105250.0,0.37873412]
[1762729752443,0.0045,105260.0,105250.0,0.37873412]
[1762729752642,0.21900691,105260.0,105250.0,0.37873412]
[1762729752854,0.48897691,105260.0,105250.0,0.28369802]
[1762729753050,0.48897691,105260.0,105250.0,0.37873352]
[1762729753243,0.48897691,105260.0,105250.0,0.38073352]
[1762729753848,0.48897691,105260.0,105250.0,0.28569802]
[1762729754156,0.48897691,105260.0,105250.0,0.38073332]
[1762729755247,0.3694964,105260.0,105250.0,0.38073352]
[1762729755455,0.39395051,105260.0,105250.0,0.74153352]
[1762729755754,0.48897701,105260.0,105250.0,0.28569802]
[1762729756355,0.48897701,105260.0,105250.0,0.27569803]
[1762729756756,0.48997701,105260.0,105250.0,0.27369803]
[1762729757054,0.52238701,105260.0,105250.0,0.27369803]
[1762729758352,0.4029065,105260.0,105250.0,0.27369803]
[1762729758552,0.52238701,105260.0,105250.0,0.2715]
[1762729758857,0.26997,105250.0,105240.0,0.45315757]
[1762729759047,0.38945051,105250.0,105240.0,0.4553556]
[1762729759248,0.26997,105250.0,105240.0,0.4553556]
[1762729759452,0.26997,105250.0,105240.0,0.00014277]
[1762729759653,0.26997,105250.0,105200.0,0.00999999]
[1762729759654,0.3650419,105210.0,105200.0,0.00999999]
[1762729759859,0.7258419,105210.0,105200.0,0.00999999]
[1762729760158,0.36506,105190.0,105180.0,0.37599999]
[1762729760459,0.36506,105190.0,105180.0,0.73899802]
[1762729760754,0.48454051,105190.0,105180.0,0.366]
[1762729760953,0.48454051,105190.0,105180.0,0.2735]
[1762729760954,0.84534051,105190.0,105180.0,0.2735]
[1762729761149,0.84534051,105190.0,105180.0,0.27569803]
[1762729761353,0.13766277,105200.0,105190.0,0.3685899]
[1762729761657,0.00014277,105200.0,105190.0,0.63649803]
[1762729761852,0.48467418,105200.0,105190.0,0.50060803]
[1762729762059,1.04141469,105200.0,105190.0,0.13980803]
[1762729762259,0.3650599,105190.0,105180.0,0.2755]
[1762729762460,0.48454041,105190.0,105180.0,0.26222393]
[1762729764160,0.84534041,105190.0,105180.0,0.26222393]
[1762729765766,0.84534041,105190.0,105180.0,0.00219803]
[1762729766059,0.84534041,105190.0,105180.0,0.26064803]
[1762729766854,0.84834041,105190.0,105180.0,0.26064803]
[1762729767250,0.48754041,105190.0,105180.0,0.26064803]
[1762729767452,0.003,105190.0,105180.0,0.69496803]
[1762729767653,0.09809,105190.0,105180.0,0.69496803]
[1762729768160,0.09509,105190.0,105180.0,0.69496803]
[1762729768352,0.09609,105190.0,105180.0,0.79006703]
[1762729768554,0.21557051,105190.0,105180.0,0.79006703]
[1762729768860,0.47739051,105190.0,105180.0,0.26064803]
[1762729769059,0.47639051,105190.0,105180.0,0.26164803]
[1762729769360,0.47639051,105190.0,105180.0,0.33516803]
[1762729769862,0.83719051,105190.0,105180.0,0.01319802]
[1762729770160,0.83719051,105190.0,105180.0,0.14486802]
[1762729770348,0.83719051,105190.0,105180.0,0.33922802]
[1762729770349,0.71771,105190.0,105180.0,0.33922802]
[1762729770551,0.83719051,105190.0,105180.0,0.33922802]
[1762729770754,0.83719051,105190.0,105180.0,0.26570802]
[1762729770954,0.83719051,105190.0,105180.0,0.14386802]
[1762729771161,0.83819051,105190.0,105180.0,0.14386802]
[1762729771563,0.83819051,105190.0,105180.0,0.26470802]
[1762729772854,0.47739051,105190.0,105180.0,0.26470802]
[1762729773750,0.83819051,105190.0,105180.0,0.25470803]
[1762729774156,0.4292184,105180.0,105170.0,0.13656675]
[1762729774453,0.90949891,105180.0,105170.0,0.00489675]
[1762729775255,0.90949891,105180.0,105170.0,0.00589675]
[1762729775664,0.93904139,105200.0,105190.0,0.25251]
[1762729775960,0.3408176,105200.0,105190.0,0.62550802]
[1762729776157,0.66830449,105200.0,105190.0,0.49247]
[1762729776360,0.3569098,105190.0,105180.0,0.68683]
[1762729776660,0.26196277,105200.0,105190.0,0.26250999]
[1762729776858,0.00014277,105200.0,105190.0,0.72059782]
[1762729777954,0.00114277,105200.0,105190.0,0.72059782]
[1762729778761,0.12062328,105200.0,105190.0,0.71059783]
[1762729779062,0.47652408,105200.0,105190.0,0.25770803]
[1762729779255,1.02910459,105200.0,105190.0,0.003]
[1762729779661,1.62910459,105200.0,105190.0,0.003]
[1762729780568,0.4262189,105180.0,105170.0,0.01489674]
[1762729780766,0.54569941,105180.0,105170.0,0.14876477]
[1762729781162,0.90649941,105180.0,105170.0,0.14876477]
[1762729781362,0.90649941,105180.0,105170.0,0.00709478]
[1762729781758,0.90749941,105180.0,105170.0,0.00709478]
[1762729783064,0.90749941,105180.0,105170.0,0.00489675]
[1762729784763,0.26182,105150.0,105140.0,0.80766923]
[1762729784966,0.26182,105150.0,105140.0,0.80986726]
[1762729785160,0.3569448,105150.0,105140.0,0.80986726]
[1762729785761,0.47655898,105160.0,105150.0,0.3476347]
[1762729785962,0.38144328,105160.0,105150.0,0.34983273]
[1762729786168,0.09525847,105160.0,105150.0,0.71063273]
[1762729786362,0.23326847,105160.0,105150.0,0.71063293]
[1762729786757,0.47655898,105160.0,105150.0,0.61550803]
[1762729787271,0.35707867,105160.0,105150.0,0.71263293]
[1762729787568,0.47655918,105160.0,105150.0,0.61750803]
[1762729788068,0.47655918,105160.0,105150.0,0.35183323]
[1762729788369,0.52647918,105160.0,105150.0,0.25670803]
[1762729788568,0.88727918,105160.0,105150.0,0.002]
[1762729788765,1.00675969,105160.0,105150.0,0.002]
[1762729788965,0.88727918,105160.0,105150.0,0.002]
[1762729790877,1.00675969,105160.0,105150.0,0.002]
[1762729791461,0.52647918,105160.0,105150.0,0.002]
[1762729791661,0.88727918,105160.0,105150.0,0.002]
[1762729794679,0.52647918,105160.0,105150.0,0.00109578]
[1762729795178,0.88727918,105160.0,105150.0,0.00109578]
[1762729796575,0.88727918,105160.0,105150.0,0.00329381]
[1762729797371,0.00014277,105160.0,105150.0,0.68469881]
[1762729797970,0.11111277,105160.0,105150.0,0.68469881]
[1762729798179,0.11111277,105160.0,105150.0,0.58957381]
[1762729798180,0.36472877,105160.0,105150.0,0.58957381]
[1762729798371,0.48420928,105160.0,105150.0,0.4918538]
[1762729798569,0.48420928,105160.0,105150.0,0.2387738]
[1762729800872,0.36472877,105160.0,105150.0,0.2387738]
[1762729801074,0.32131877,105160.0,105150.0,0.2387738]
[1762729801380,0.72552877,105160.0,105150.0,0.01109577]
[1762729802076,0.72552877,105160.0,105140.0,0.00475534]
[1762729802077,0.321185,105150.0,105140.0,0.00475534]
[1762729802282,0.85738518,105150.0,105140.0,0.00695337]
[1762729802780,0.85738518,105150.0,105140.0,0.00475534]
[1762729802974,0.3906041,105140.0,105130.0,0.00014277]
[1762729803176,0.1254422,105120.0,105110.0,8e-08]
[1762729803384,0.30084238,105120.0,105110.0,8e-08]
[1762729804373,0.30084238,105120.0,105110.0,0.00219811]
[1762729804683,0.7123022,105120.0,105110.0,0.00219811]
[1762729804875,0.88770238,105120.0,105110.0,0.00219811]
[1762729805073,0.88770238,105120.0,105110.0,0.21763811]
[1762729805980,0.88870238,105120.0,105110.0,0.22763811]
[1762729806584,0.22706,105120.0,105110.0,0.68359911]
[1762729806884,0.12697,105120.0,105110.0,0.68359911]
[1762729807479,0.54579208,105120.0,105110.0,0.01219811]
[1762729807674,0.51261208,105120.0,105110.0,0.22763811]
[1762729808686,0.337212,105120.0,105110.0,0.22763811]
[1762729809974,0.731192,105120.0,105110.0,0.01219811]
[1762729810179,0.73339003,105120.0,105110.0,0.00730606]
[1762729811477,0.73339003,105120.0,105110.0,0.11502606]
[1762729811681,0.73339003,105120.0,105110.0,0.00730606]
[1762729812585,0.321221,105110.0,105100.0,0.00014277]
[1762729812886,0.85961921,105110.0,105100.0,0.21631544]
[1762729813481,0.8743406,105110.0,105100.0,0.21631544]
[1762729813882,0.8903406,105110.0,105100.0,0.21631544]
[1762729814591,0.8903406,105110.0,105100.0,0.00114277]
[1762729816490,0.8903406,105110.0,105100.0,2.77e-06]
[1762729817179,0.3894997,105100.0,105090.0,0.00485235]
[1762729817491,0.75249773,105100.0,105090.0,0.00485235]
[1762729817784,0.3212387,105090.0,105080.0,0.00490082]
[1762729817984,0.85963691,105090.0,105080.0,0.00490082]
[1762729818893,0.87563691,105090.0,105080.0,0.00490082]
[1762729819191,0.87763691,105090.0,105080.0,0.00490082]
[1762729822988,0.87763691,105090.0,105080.0,0.00266336]
[1762729823391,0.87763691,105090.0,105080.0,0.00339603]
[1762729823589,0.34143723,105090.0,105080.0,0.38130433]
[1762729823895,0.70223723,105090.0,105080.0,0.28611603]
[1762729824095,0.70223723,105090.0,105080.0,0.21883603]
[1762729824396,0.70523723,105090.0,105080.0,0.21883603]
[1762729824695,0.34443723,105090.0,105080.0,0.21883603]
[1762729825392,0.34443723,105090.0,105080.0,0.28611603]
[1762729826195,0.32843723,105090.0,105080.0,0.28611603]
[1762729826396,0.34443723,105090.0,105080.0,0.28611603]
[1762729826596,0.70223723,105090.0,105080.0,0.21883603]
[1762729826897,0.70223723,105090.0,105080.0,0.00339603]
[1762729827192,0.70223723,105090.0,105080.0,0.00266336]
[1762729827501,0.2997172,105070.0,105060.0,0.27348]
[1762729827686,0.47731541,105070.0,105060.0,0.27421267]
[1762729828292,0.47731541,105070.0,105060.0,0.20693267]
[1762729828492,0.47731541,105070.0,105060.0,0.26786267]
[1762729828893,0.49331541,105070.0,105060.0,0.26786267]
[1762729829700,0.49331541,105070.0,105060.0,0.26986267]
[1762729830500,0.49331541,105070.0,105060.0,0.26786267]
[1762729831198,0.47731541,105070.0,105060.0,0.26786267]
[1762729831398,0.49331541,105070.0,105060.0,0.26786267]
[1762729833399,0.39811821,105070.0,105060.0,0.36306897]
[1762729833595,0.39547501,105070.0,105060.0,0.72386897]
[1762729833995,0.12487803,105070.0,105060.0,0.72386897]
[1762729834390,0.22271803,105070.0,105060.0,0.72386897]
[1762729834901,0.31791473,105070.0,105060.0,0.62866267]
[1762729835098,0.31791473,105070.0,105060.0,0.72386847]
[1762729835298,0.35748473,105070.0,105060.0,0.47111267]
[1762729835491,0.31791473,105070.0,105060.0,0.26786267]
[1762729835697,0.49331491,105070.0,105060.0,0.62866267]
[1762729836404,0.49331491,105070.0,105060.0,0.26786267]
[1762729836997,0.55633491,105070.0,105060.0,0.26786267]
[1762729837300,0.55633491,105070.0,105060.0,0.20693267]
[1762729838005,0.55633491,105070.0,105060.0,0.1914413]
[1762729838604,0.55633491,105070.0,105060.0,0.2523713]
[1762729838800,0.55633491,105070.0,105060.0,0.1914413]
[1762729839400,0.49331491,105070.0,105060.0,0.7083777]
[1762729839596,0.01819803,105070.0,105060.0,0.7083777]
[1762729839800,0.22271803,105070.0,105060.0,0.7083777]
[1762729840107,0.01819803,105070.0,105060.0,0.7083777]
[1762729841207,0.22271803,105070.0,105060.0,0.7083777]
[1762729841904,0.31791533,105070.0,105060.0,0.7083777]
[1762729842301,0.31791533,105070.0,105060.0,0.6131713]
[1762729843410,0.37297533,105070.0,105060.0,0.6131713]
[1762729844404,0.31791533,105070.0,105060.0,0.6131713]
[1762729845205,0.54837551,105070.0,105060.0,0.6131713]
[1762729845410,0.54837551,105070.0,105060.0,0.5522413]
[1762729846011,0.90917551,105070.0,105060.0,0.0948213]
[1762729846207,0.90917551,105070.0,105060.0,0.00073267]
[1762729846512,0.90917551,105070.0,105050.0,0.21110218]
[1762729846513,0.3627464,105060.0,105050.0,0.21110218]
[1762729846702,0.36494443,105060.0,105050.0,0.21183485]
[1762729847806,0.2792339,105040.0,105030.0,0.45774]
[1762729848005,0.28143193,105040.0,105030.0,0.53693861]
[1762729848500,0.18620803,105040.0,105030.0,0.63217151]
[1762729848706,0.00219803,105040.0,105030.0,0.63217151]
[1762729849297,0.09742193,105040.0,105030.0,0.63217151]
[1762729849496,0.00219803,105040.0,105030.0,0.63217151]
[1762729850016,0.01819803,105040.0,105030.0,0.63617151]
[1762729850697,0.00219803,105040.0,105030.0,0.63617151]
[1762729851007,0.11342213,105040.0,105030.0,0.63617151]
[1762729851211,0.29743213,105040.0,105030.0,0.54093861]
[1762729852206,0.29743213,105040.0,105030.0,0.63617171]
[1762729852410,0.01819803,105040.0,105030.0,0.63617171]
[1762729854213,0.00014277,105050.0,105030.0,0.63617171]
[1762729854214,0.00014277,105050.0,105040.0,0.341084]
[1762729854509,0.0023408,105050.0,105040.0,0.70261667]
[1762729855305,0.0023408,105050.0,105040.0,0.70461667]
[1762729855501,0.1863508,105050.0,105040.0,0.3628]
[1762729855703,0.1863508,105050.0,105000.0,0.0952598]
[1762729855704,0.2792612,105010.0,105000.0,0.5517]
[1762729855906,0.2792612,105010.0,105000.0,0.19163267]
[1762729855907,0.45685941,105010.0,105000.0,0.19163267]
[1762729856212,0.00219803,105010.0,105000.0,0.24936267]
[1762729856798,0.0952425,105020.0,105010.0,0.19233]
[1762729856799,0.00014277,105020.0,105010.0,0.19233]
[1762729857009,0.0023408,105020.0,105010.0,0.19306267]
[1762729857312,0.0952302,105040.0,105030.0,0.19233]
[1762729857528,0.50819302,105050.0,105040.0,0.19233]
[1762729857710,0.58199432,105050.0,105040.0,0.34748193]
[1762729857902,0.4560004,105070.0,105050.0,0.0952148]
[1762729858102,0.4604915,105080.0,105060.0,0.15513383]
[1762729858415,0.46063427,105080.0,105070.0,0.19233]
[1762729858613,0.46063427,105080.0,105070.0,0.19452803]
[1762729859106,0.46463427,105080.0,105070.0,0.19452803]
[1762729859300,0.56214427,105080.0,105070.0,0.19452803]
[1762729859502,0.65641427,105080.0,105070.0,0.19452803]
[1762729859909,0.2869768,105070.0,105060.0,0.19247277]
[1762729860105,0.2869768,105070.0,105060.0,0.1946708]
[1762729860106,0.82317698,105070.0,105060.0,0.1946708]
[1762729860412,0.82317698,105070.0,105060.0,0.0992408]
[1762729860803,0.55258,105070.0,105060.0,0.21539949]
[1762729861010,0.55258,105070.0,105060.0,0.17917949]
[1762729861011,0.78055913,105070.0,105060.0,0.17917949]
[1762729861405,0.78255913,105070.0,105060.0,0.17917949]
[1762729862416,0.78355913,105070.0,105060.0,0.17917949]
[1762729862918,0.76955913,105070.0,105060.0,0.17917949]
[1762729863111,0.78255913,105070.0,105060.0,0.17917949]
[1762729863815,0.78255913,105070.0,105060.0,0.00219803]
[1762729864012,0.095215,105050.0,105040.0,0.61086]
[1762729864214,0.11978233,105050.0,105040.0,0.61305803]
[1762729865028,0.095242,105030.0,105020.0,0.22855]
[1762729865208,0.31156233,105030.0,105020.0,0.19452803]
[1762729865411,0.31156233,105030.0,105020.0,0.23074803]
[1762729865716,0.67236233,105030.0,105020.0,0.23074803]